bitfinex/quotes_BTCUSD_20251102
["timestamp","ask_amount","ask_price","bid_price","bid_amount"]
[1762124748444,8.729e-05,110320.0,110310.0,1.11551065]
[1762124748868,8.729e-05,110320.0,110310.0,1.16069293]
[1762124749314,8.729e-05,110320.0,110310.0,1.15169293]
[1762124749741,8.729e-05,110320.0,110310.0,1.15469293]
[1762124750889,8.729e-05,110320.0,110310.0,1.15169293]
[1762124751318,8.729e-05,110320.0,110310.0,1.16069293]
[1762124752915,8.729e-05,110320.0,110310.0,1.22745801]
[1762124756069,8.729e-05,110320.0,110310.0,0.83244458]
[1762124756273,8.729e-05,110320.0,110310.0,1.22745801]
[1762124756721,8.729e-05,110320.0,110310.0,1.19127573]
[1762124756926,8.729e-05,110320.0,110310.0,1.18227573]
[1762124757303,8.729e-05,110320.0,110310.0,1.18827573]
[1762124758493,8.729e-05,110320.0,110310.0,1.32415808]
[1762124760467,8.729e-05,110320.0,110310.0,1.36034036]
[1762124761810,0.01209,110370.0,110360.0,0.18122508]
[1762124762063,0.02818742,110370.0,110360.0,0.20612508]
[1762124762286,8.742e-05,110370.0,110360.0,0.20612508]
[1762124762503,8.742e-05,110370.0,110360.0,0.22995508]
[1762124762715,8.742e-05,110370.0,110360.0,0.56995508]
[1762124763178,8.742e-05,110370.0,110360.0,1.10085086]
[1762124763836,8.742e-05,110370.0,110360.0,0.56995508]
[1762124764076,0.18129608,110370.0,110360.0,0.3649]
[1762124764286,0.19730608,110370.0,110360.0,0.3649]
[1762124764714,0.18122508,110360.0,110350.0,0.34887]
[1762124764941,0.19723508,110360.0,110350.0,0.3649]
[1762124765150,0.22161508,110360.0,110350.0,0.34]
[1762124765359,0.22161508,110360.0,110340.0,0.20012037]
[1762124765360,0.04039,110360.0,110340.0,0.20012037]
[1762124765562,0.22161788,110360.0,110350.0,0.34]
[1762124765796,0.19723788,110360.0,110350.0,0.35603]
[1762124766009,0.22161788,110360.0,110350.0,0.34]
[1762124767362,0.18125793,110340.0,110330.0,0.54016781]
[1762124767570,0.19726793,110340.0,110330.0,0.03492371]
[1762124767797,0.2172215,110350.0,110330.0,0.21619806]
[1762124768011,0.2088515,110350.0,110340.0,0.19728793]
[1762124768446,0.2088515,110350.0,110340.0,0.01603]
[1762124768873,0.2088515,110350.0,110340.0,0.19728793]
[1762124769089,0.18125793,110340.0,110330.0,0.54016806]
[1762124769499,0.18125793,110340.0,110330.0,0.55619806]
[1762124770348,0.19726793,110340.0,110330.0,0.36586]
[1762124771040,0.19726793,110340.0,110330.0,0.54713435]
[1762124771255,0.20026793,110340.0,110330.0,0.54713435]
[1762124771465,0.20026793,110340.0,110330.0,0.36586]
[1762124771955,0.22464793,110340.0,110330.0,0.34]
[1762124772172,0.18128771,110330.0,110310.0,0.18267]
[1762124772387,0.18128771,110330.0,110310.0,0.01084]
[1762124772388,0.20403079,110320.0,110310.0,0.01084]
[1762124772847,0.19288771,110330.0,110310.0,0.23200722]
[1762124773081,0.19730079,110320.0,110310.0,0.02687]
[1762124773522,0.22168079,110320.0,110310.0,0.00014479]
[1762124774399,0.22468079,110320.0,110310.0,0.00014479]
[1762124774604,0.22468079,110320.0,110310.0,0.19748201]
[1762124774605,0.20030079,110320.0,110310.0,0.19748201]
[1762124775099,0.20030079,110320.0,110310.0,0.02701479]
[1762124775309,0.20030079,110320.0,110310.0,0.20832201]
[1762124775524,0.003,110320.0,110310.0,0.23163201]
[1762124776177,0.22572079,110320.0,110310.0,0.00014479]
[1762124778888,0.75661657,110320.0,110310.0,0.00014479]
[1762124779271,0.77613637,110320.0,110310.0,0.00014479]
[1762124779458,0.75661657,110320.0,110310.0,0.00014479]
[1762124779668,0.77612898,110320.0,110310.0,0.00014479]
[1762124779873,0.75661657,110320.0,110310.0,0.00014479]
[1762124780091,0.77612916,110320.0,110310.0,0.00014479]
[1762124780302,0.77312916,110320.0,110310.0,0.00014479]
[1762124780714,0.78012916,110320.0,110310.0,0.00014479]
[1762124780923,0.81822205,110320.0,110310.0,0.00014479]
[1762124781173,0.22972079,110320.0,110310.0,0.00014479]
[1762124782250,0.22272079,110320.0,110310.0,0.00014479]
[1762124782472,0.23072079,110320.0,110310.0,0.00014479]
[1762124782938,0.22272079,110320.0,110310.0,0.00014479]
[1762124783359,0.76761656,110320.0,110310.0,0.00014479]
[1762124783571,0.8769182,110320.0,110310.0,0.00014479]
[1762124784017,0.8729182,110320.0,110310.0,0.00014479]
[1762124784459,0.87291153,110320.0,110310.0,0.00014479]
[1762124785318,0.86143557,110320.0,110310.0,0.00014479]
[1762124785532,0.23072079,110320.0,110310.0,0.00014479]
[1762124785746,0.22272079,110320.0,110310.0,0.00014479]
[1762124786169,0.23372079,110320.0,110310.0,0.00014479]
[1762124786612,0.22272079,110320.0,110310.0,0.00014479]
[1762124787040,0.22872079,110320.0,110310.0,0.00014479]
[1762124788335,0.04743,110320.0,110310.0,0.00014479]
[1762124788590,0.20377079,110320.0,110310.0,0.20830201]
[1762124788822,0.02248,110320.0,110310.0,0.20830201]
[1762124789032,0.01648,110320.0,110310.0,0.20830201]
[1762124789473,0.003,110320.0,110310.0,0.20830201]
[1762124789894,0.27495082,110330.0,110310.0,0.23202201]
[1762124790107,0.29862082,110330.0,110310.0,0.23202201]
[1762124790311,0.006,110320.0,110310.0,0.23202201]
[1762124791367,0.29862082,110330.0,110310.0,0.23202201]
[1762124791579,0.19743079,110320.0,110310.0,0.01098479]
[1762124791794,0.22110079,110320.0,110310.0,0.00014479]
[1762124792672,0.22710079,110320.0,110310.0,0.00014479]
[1762124793104,0.22110079,110320.0,110310.0,0.18145201]
[1762124793943,0.19743079,110320.0,110310.0,0.19746201]
[1762124794158,0.01614,110320.0,110310.0,0.19746201]
[1762124794371,0.22110079,110320.0,110310.0,0.00014479]
[1762124794580,0.22710079,110320.0,110310.0,0.18145201]
[1762124794787,0.20343079,110320.0,110310.0,0.20830201]
[1762124794994,0.19743079,110320.0,110310.0,0.20830201]
[1762124795274,0.20043079,110320.0,110310.0,0.20830201]
[1762124795484,0.01914,110320.0,110310.0,0.20830201]
[1762124796102,0.20043079,110320.0,110310.0,0.02699479]
[1762124796310,0.20043079,110320.0,110310.0,0.01098479]
[1762124796716,0.20043079,110320.0,110310.0,0.20830201]
[1762124797365,0.19743079,110320.0,110310.0,0.20830201]
[1762124797705,0.19743079,110320.0,110310.0,0.21130201]
[1762124798312,0.19743079,110320.0,110310.0,0.20830201]
[1762124798725,0.22110079,110320.0,110310.0,0.02699479]
[1762124798951,0.22110079,110320.0,110310.0,0.01098479]
[1762124799172,0.22110079,110320.0,110310.0,0.00014479]
[1762124799393,0.75199657,110320.0,110310.0,0.00014479]
[1762124799807,0.77153131,110320.0,110310.0,0.00014479]
[1762124800241,0.79586155,110320.0,110310.0,0.00014479]
[1762124800862,0.80186155,110320.0,110310.0,0.00014479]
[1762124801257,0.88568056,110320.0,110310.0,0.00014479]
[1762124801485,0.9179957,110320.0,110310.0,0.00014479]
[1762124801689,0.95324324,110320.0,110310.0,0.00014479]
[1762124801841,0.9702109,110320.0,110310.0,0.00014479]
[1762124804540,0.20907366,110300.0,110290.0,0.01062872]
[1762124804753,0.20907366,110300.0,110290.0,0.01071601]
[1762124804986,0.23173366,110300.0,110290.0,0.00164901]
[1762124805528,0.23173366,110300.0,110290.0,0.18298911]
[1762124805798,0.23173366,110300.0,110290.0,0.00164901]
[1762124806009,0.2512842,110300.0,110290.0,0.00164901]
[1762124806428,0.23173366,110300.0,110290.0,0.18298911]
[1762124806644,0.23473366,110300.0,110290.0,0.18298911]
[1762124806858,0.23473366,110300.0,110290.0,0.00164901]
[1762124807084,0.25428433,110300.0,110290.0,0.18298911]
[1762124807722,0.05341,110300.0,110290.0,0.18298911]
[1762124808142,0.23473366,110300.0,110290.0,0.18298911]
[1762124808583,0.23473366,110300.0,110290.0,0.00164901]
[1762124809468,0.25428502,110300.0,110290.0,0.00164901]
[1762124811895,0.87499981,110300.0,110290.0,0.00164901]
[1762124812336,0.89933005,110300.0,110290.0,0.00164901]
[1762124813423,0.87499981,110300.0,110290.0,0.00164901]
[1762124814276,0.89933005,110300.0,110290.0,0.00164901]
[1762124814909,0.27861526,110300.0,110290.0,0.00164901]
[1762124815129,0.25428502,110300.0,110290.0,0.00164901]
[1762124815981,0.7851808,110300.0,110290.0,0.00164901]
[1762124816189,0.80951104,110300.0,110290.0,0.00164901]
[1762124817072,0.80651104,110300.0,110290.0,0.00164901]
[1762124817305,0.90433005,110300.0,110290.0,0.00164901]
[1762124818659,0.89633005,110300.0,110290.0,0.00164901]
[1762124819107,0.90333005,110300.0,110290.0,0.00164901]
[1762124820206,0.81351104,110300.0,110290.0,0.00164901]
[1762124820425,0.6536144,110300.0,110290.0,0.00164901]
[1762124821542,0.67794464,110300.0,110290.0,0.00164901]
[1762124822045,0.69490447,110300.0,110290.0,0.00164901]
[1762124822254,0.74108674,110300.0,110290.0,0.00164901]
[1762124822471,0.86322089,110300.0,110290.0,1e-08]
[1762124822689,0.890477,110300.0,110290.0,1e-08]
[1762124822899,0.89230432,110300.0,110290.0,1e-08]
[1762124823121,0.88704437,110300.0,110290.0,1e-08]
[1762124823352,0.89704436,110300.0,110290.0,1e-08]
[1762124823566,0.89004436,110300.0,110290.0,1e-08]
[1762124824429,1.01814956,110300.0,110290.0,1e-08]
[1762124824867,1.42247894,110300.0,110290.0,1e-08]
[1762124825087,1.40619337,110300.0,110290.0,1e-08]
[1762124828358,1.01086399,110300.0,110290.0,1e-08]
[1762124829355,1.01086216,110300.0,110290.0,1e-08]
[1762124829904,0.39062244,110300.0,110290.0,1e-08]
[1762124830136,0.30639617,110300.0,110290.0,1e-08]
[1762124830352,0.73790783,110300.0,110290.0,1e-08]
[1762124830564,0.30165613,110300.0,110290.0,1e-08]
[1762124831210,0.68798551,110300.0,110290.0,1e-08]
[1762124831430,0.77780452,110300.0,110290.0,1e-08]
[1762124831642,0.77880077,110300.0,110290.0,1e-08]
[1762124831854,0.76184652,110300.0,110290.0,1e-08]
[1762124832068,0.77880077,110300.0,110290.0,1e-08]
[1762124832333,0.77780077,110300.0,110290.0,1e-08]
[1762124832553,0.78180077,110300.0,110290.0,1e-08]
[1762124832976,0.77780077,110300.0,110290.0,1e-08]
[1762124833395,0.78480077,110300.0,110290.0,1e-08]
[1762124834523,0.69498176,110300.0,110290.0,1e-08]
[1762124834760,0.29965238,110300.0,110290.0,1e-08]
[1762124835228,0.25828502,110300.0,110290.0,1e-08]
[1762124835450,0.23173366,110300.0,110290.0,1e-08]
[1762124835673,0.25127089,110300.0,110290.0,1e-08]
[1762124835907,0.74041928,110300.0,110290.0,1e-08]
[1762124837527,0.25527089,110300.0,110290.0,1e-08]
[1762124838214,0.25127089,110300.0,110290.0,1e-08]
[1762124838657,0.25227089,110300.0,110290.0,1e-08]
[1762124847773,0.22961089,110300.0,110290.0,0.01526001]
[1762124847990,0.18232366,110300.0,110290.0,0.22962011]
[1762124848221,0.001,110300.0,110290.0,0.22962011]
[1762124848666,0.31925666,110310.0,110290.0,0.22962011]
[1762124848890,0.31925666,110310.0,110300.0,0.18132366]
[1762124849142,0.31583688,110310.0,110300.0,0.18132366]
[1762124849356,0.31583688,110310.0,110300.0,0.19658366]
[1762124849572,0.1098956,110310.0,110300.0,0.19658366]
[1762124849786,0.0937756,110310.0,110300.0,0.21977366]
[1762124850009,0.19287444,110330.0,110310.0,0.18130722]
[1762124850269,0.19287444,110330.0,110310.0,0.20740722]
[1762124850270,0.27948639,110320.0,110310.0,0.20740722]
[1762124850487,0.0981956,110320.0,110310.0,0.20740722]
[1762124851150,0.19287444,110330.0,110320.0,0.18129079]
[1762124851363,0.20899444,110330.0,110320.0,0.18129079]
[1762124851603,0.24179203,110330.0,110320.0,0.19655079]
[1762124852025,0.24179194,110330.0,110320.0,0.19655079]
[1762124852243,0.18129079,110320.0,110310.0,0.03903]
[1762124852453,0.19741079,110320.0,110310.0,0.01584]
[1762124852665,0.22203079,110320.0,110310.0,0.005]
[1762124853289,0.18130722,110310.0,110300.0,0.34]
[1762124853508,0.19742722,110310.0,110300.0,0.53658366]
[1762124853949,0.18130722,110310.0,110300.0,0.55977366]
[1762124854370,0.20591079,110320.0,110300.0,0.55977366]
[1762124854590,0.19741079,110320.0,110310.0,0.19656722]
[1762124854806,0.19741079,110320.0,110310.0,0.01526]
[1762124855067,0.18130722,110310.0,110300.0,0.52132366]
[1762124855308,0.18130722,110310.0,110300.0,0.53958366]
[1762124855530,0.18130722,110310.0,110300.0,0.56277366]
[1762124856253,0.18130722,110310.0,110300.0,0.55977366]
[1762124856697,0.18130722,110310.0,110300.0,0.37845]
[1762124857420,0.18130722,110310.0,110300.0,0.38245]
[1762124858065,0.18130722,110310.0,110300.0,0.56377366]
[1762124859470,0.18130722,110310.0,110300.0,0.38245]
[1762124860374,0.24784902,110310.0,110300.0,0.344]
[1762124860602,0.31582282,110310.0,110300.0,0.004]
[1762124861242,0.29120282,110310.0,110300.0,0.01526]
[1762124862544,0.29120282,110310.0,110290.0,0.55435951]
[1762124862545,0.18132366,110300.0,110290.0,0.34983001]
[1762124862832,0.22206366,110300.0,110290.0,0.34000001]
[1762124863019,0.70664063,110300.0,110290.0,1e-08]
[1762124863907,0.70664063,110300.0,110290.0,0.00100001]
[1762124864343,0.31131125,110300.0,110290.0,0.00100001]
[1762124864552,0.31131125,110300.0,110290.0,1e-08]
[1762124864764,0.31331125,110300.0,110290.0,1e-08]
[1762124867448,0.70864063,110300.0,110290.0,1e-08]
[1762124867643,0.72817867,110300.0,110290.0,1e-08]
[1762124869495,0.63893108,110300.0,110290.0,1e-08]
[1762124869733,0.2436017,110300.0,110290.0,1e-08]
[1762124869961,0.2436017,110300.0,110290.0,0.01650001]
[1762124869962,0.2189817,110300.0,110290.0,0.01650001]
[1762124870185,0.2189817,110300.0,110290.0,0.02633001]
[1762124870400,0.2189817,110300.0,110290.0,0.20767011]
[1762124870401,0.19944366,110300.0,110290.0,0.20767011]
[1762124871301,0.18332366,110300.0,110290.0,0.23221011]
[1762124871510,0.18332366,110300.0,110290.0,0.02633001]
[1762124871736,0.22288366,110300.0,110290.0,1e-08]
[1762124872018,0.65318147,110300.0,110290.0,1e-08]
[1762124872242,0.56861199,110300.0,110290.0,1e-08]
[1762124872459,0.22088366,110300.0,110290.0,0.00100001]
[1762124873594,0.22088366,110300.0,110290.0,1e-08]
[1762124873796,0.22288366,110300.0,110290.0,1e-08]
[1762124881091,0.61813052,110300.0,110290.0,1e-08]
[1762124882577,0.22288366,110300.0,110290.0,1e-08]
[1762124883476,0.75426453,110300.0,110290.0,1e-08]
[1762124883741,0.86363144,110300.0,110290.0,1e-08]
[1762124885521,0.77381243,110300.0,110290.0,1e-08]
[1762124885757,0.24243156,110300.0,110290.0,0.01650001]
[1762124885988,0.21896156,110300.0,110290.0,0.02633001]
[1762124886208,0.19941366,110300.0,110290.0,0.20767011]
[1762124886665,0.29855282,110310.0,110290.0,0.23221011]
[1762124886883,0.19741366,110300.0,110290.0,0.20766899]
[1762124887093,0.18132366,110300.0,110290.0,0.23620899]
[1762124887524,0.18132366,110300.0,110290.0,0.23220899]
[1762124887958,0.18132366,110300.0,110290.0,0.23320899]
[1762124888394,0.18132366,110300.0,110290.0,0.23220899]
[1762124889705,0.18132366,110300.0,110290.0,0.23620899]
[1762124889920,0.19741366,110300.0,110290.0,0.03033001]
[1762124891823,0.01609,110300.0,110290.0,0.21167011]
[1762124892043,0.28295987,110310.0,110290.0,0.23621011]
[1762124892257,0.28295987,110310.0,110300.0,0.19782366]
[1762124892717,0.29904987,110310.0,110300.0,0.19782366]
[1762124893614,0.11774265,110310.0,110300.0,0.19782366]
[1762124893838,0.002902,110320.0,110310.0,0.52130722]
[1762124894113,0.002902,110320.0,110310.0,1.10259809]
[1762124894566,1e-08,110320.0,110310.0,1.13878037]
[1762124895490,0.0820756,110380.0,110370.0,0.18120866]
[1762124895707,0.0820756,110380.0,110370.0,0.20787866]
[1762124895924,0.19338686,110390.0,110370.0,0.23285866]
[1762124896144,0.26326784,110380.0,110370.0,0.03515]
[1762124896364,0.26326784,110380.0,110370.0,0.21635866]
[1762124896628,0.26326784,110380.0,110370.0,0.05165]
[1762124896869,0.26335531,110380.0,110370.0,0.05165]
[1762124897083,0.26635531,110380.0,110370.0,0.05165]
[1762124897296,0.28290531,110380.0,110370.0,0.02667]
[1762124898614,0.18120866,110370.0,110360.0,0.01017]
[1762124898832,0.20966866,110370.0,110350.0,0.5563915]
[1762124899052,0.20966866,110370.0,110360.0,0.0165]
[1762124899294,0.18122508,110360.0,110350.0,0.37515]
[1762124899535,0.18122508,110360.0,110330.0,0.29110411]
[1762124899536,0.18125793,110340.0,110330.0,0.21642435]
[1762124899777,0.18125793,110340.0,110330.0,0.02667]
[1762124900230,0.19780793,110340.0,110320.0,0.03515]
[1762124900473,0.18127435,110330.0,110320.0,0.19146079]
[1762124900691,0.18140551,110330.0,110320.0,0.05165]
[1762124900911,0.18140551,110330.0,110320.0,0.20796079]
[1762124900912,0.00013116,110330.0,110320.0,0.20796079]
[1762124901130,0.00013116,110330.0,110320.0,0.23294079]
[1762124901820,0.18140551,110330.0,110320.0,0.23294079]
[1762124902031,0.00013116,110330.0,110320.0,0.76432166]
[1762124902246,0.00013116,110330.0,110320.0,1.14050394]
[1762124902913,0.00300001,110330.0,110320.0,0.60912307]
[1762124903168,1e-08,110330.0,110320.0,0.57594079]
[1762124903388,0.00200001,110330.0,110320.0,0.57594079]
[1762124903611,0.00200001,110330.0,110320.0,0.57294079]
[1762124903825,0.00200001,110330.0,110320.0,0.58494079]
[1762124904292,0.00200001,110330.0,110320.0,0.57294079]
[1762124904755,0.00200001,110330.0,110320.0,0.57894079]
[1762124905014,1e-08,110330.0,110320.0,0.57894079]
[1762124905476,0.00200001,110330.0,110320.0,0.59494079]
[1762124906791,0.00200001,110330.0,110320.0,1.16250394]
[1762124907216,0.00200001,110330.0,110320.0,1.31050394]
[1762124907432,1e-08,110330.0,110320.0,1.33773182]
[1762124907661,0.30885684,110390.0,110370.0,0.1812042]
[1762124907890,0.18119224,110380.0,110370.0,0.19641866]
[1762124908119,0.01644,110380.0,110370.0,0.20658866]
[1762124908815,0.30890509,110390.0,110380.0,0.18119224]
[1762124909237,0.32534509,110390.0,110380.0,0.18119224]
[1762124909452,0.20979427,110390.0,110380.0,0.19640224]
[1762124909915,0.21479427,110390.0,110380.0,0.20240224]
[1762124910125,0.03361844,110390.0,110380.0,0.20240224]
[1762124910343,0.11569404,110390.0,110380.0,0.20240224]
[1762124910574,0.00526844,110390.0,110380.0,0.22639224]
[1762124911909,0.18144427,110390.0,110380.0,0.01521]
[1762124912142,0.18144427,110390.0,110380.0,0.0392]
[1762124912408,0.76499514,110390.0,110380.0,0.005]
[1762124912637,0.01165844,110390.0,110380.0,0.20140224]
[1762124912855,0.00026844,110390.0,110380.0,0.22539224]
[1762124913067,0.00026844,110390.0,110380.0,0.22139224]
[1762124913281,0.00026844,110390.0,110380.0,0.22039224]
[1762124913494,0.00226844,110390.0,110380.0,0.22339224]
[1762124913719,0.00226844,110390.0,110380.0,0.22039224]
[1762124913925,0.18344427,110390.0,110380.0,0.0392]
[1762124914165,0.18119224,110380.0,110370.0,0.35017]
[1762124914374,0.19763224,110380.0,110370.0,0.35017]
[1762124914805,0.19763224,110380.0,110370.0,0.01017]
[1762124916158,0.22197224,110380.0,110370.0,0.004]
[1762124916431,0.30404784,110380.0,110370.0,0.001]
[1762124916642,0.30404784,110380.0,110370.0,0.002]
[1762124916858,0.30604784,110380.0,110370.0,0.002]
[1762124917903,0.30604784,110380.0,110350.0,0.21427715]
[1762124917904,0.18122171,110370.0,110350.0,0.21427715]
[1762124918114,0.20519171,110370.0,110350.0,0.21427715]
[1762124918322,0.20519171,110370.0,110360.0,0.01521]
[1762124918532,0.18122171,110370.0,110360.0,0.01521]
[1762124918979,0.30519745,110380.0,110360.0,0.22042508]
[1762124919195,0.19778185,110380.0,110370.0,0.02538]
[1762124919657,0.21422185,110380.0,110370.0,0.20658866]
[1762124920140,0.21422185,110380.0,110370.0,0.02538]
[1762124920608,0.21422185,110380.0,110370.0,0.01017]
[1762124921461,0.21622185,110380.0,110370.0,0.01017]
[1762124921908,0.21622185,110380.0,110370.0,0.02538]
[1762124922339,0.18120866,110370.0,110350.0,0.19028715]
[1762124922566,0.20903866,110370.0,110350.0,0.21427715]
[1762124922815,0.20903866,110370.0,110360.0,0.01521]
[1762124923046,0.18122508,110360.0,110350.0,0.36399]
[1762124923276,0.18122508,110360.0,110350.0,0.01521]
[1762124923277,0.19766508,110360.0,110350.0,0.01521]
[1762124923968,0.1812415,110350.0,110340.0,0.37416]
[1762124924196,0.1812415,110350.0,110340.0,0.55541793]
[1762124924417,0.1812415,110350.0,110340.0,0.57062793]
[1762124925081,0.1812415,110350.0,110340.0,0.23062793]
[1762124925324,4.822e-05,110350.0,110340.0,0.22562793]
[1762124925572,0.00804822,110350.0,110340.0,0.22562793]
[1762124926045,4.822e-05,110350.0,110340.0,0.22562793]
[1762124927148,0.00404822,110350.0,110340.0,0.22562793]
[1762124927563,4.822e-05,110350.0,110340.0,0.22562793]
[1762124928025,4.822e-05,110350.0,110340.0,0.22962793]
[1762124928252,4.822e-05,110350.0,110340.0,1.1010088]
[1762124930641,4.822e-05,110350.0,110340.0,1.13719108]
[1762124931497,4.822e-05,110350.0,110340.0,0.56962793]
[1762124931747,4.822e-05,110350.0,110340.0,0.56562793]
[1762124931960,4.822e-05,110350.0,110340.0,0.57262793]
[1762124932170,4.822e-05,110350.0,110340.0,0.57762793]
[1762124932387,4.822e-05,110350.0,110340.0,0.57262793]
[1762124933232,4.822e-05,110350.0,110340.0,0.56562793]
[1762124933453,4.822e-05,110350.0,110340.0,0.56662793]
[1762124933671,4.822e-05,110350.0,110340.0,0.56862793]
[1762124933877,4.822e-05,110350.0,110340.0,1.1000088]
[1762124934339,4.822e-05,110350.0,110340.0,0.56862793]
[1762124936233,4.822e-05,110350.0,110340.0,1.1000088]
[1762124937640,4.822e-05,110350.0,110340.0,0.56862793]
[1762124938872,4.822e-05,110350.0,110340.0,1.1000088]
[1762124939290,4.822e-05,110350.0,110340.0,1.13619108]
[1762124939528,4.822e-05,110350.0,110340.0,1.28419108]
[1762124940421,4.822e-05,110350.0,110340.0,1.13619108]
[1762124940631,4.822e-05,110350.0,110340.0,1.14619107]
[1762124940892,4.822e-05,110350.0,110340.0,0.62381019]
[1762124941117,4.822e-05,110350.0,110340.0,1.15819106]
[1762124941324,4.822e-05,110350.0,110340.0,1.15619106]
[1762124941759,4.822e-05,110350.0,110340.0,1.16119106]
[1762124942843,4.822e-05,110350.0,110340.0,1.15619106]
[1762124943355,0.00022019,110390.0,110380.0,0.52119224]
[1762124943565,0.00070245,110390.0,110380.0,1.06858311]
[1762124943790,0.00070245,110390.0,110380.0,1.12889539]
[1762124944469,0.00070245,110390.0,110380.0,0.99167733]
[1762124945172,0.00070245,110390.0,110380.0,1.05997122]
[1762124945389,0.00070245,110390.0,110380.0,0.56133224]
[1762124946038,0.00070245,110390.0,110380.0,0.56733224]
[1762124946261,0.00070245,110390.0,110380.0,0.56433224]
[1762124946482,0.00070245,110390.0,110380.0,0.56133224]
[1762124946677,0.00070245,110390.0,110380.0,0.56333224]
[1762124948386,0.00070245,110390.0,110380.0,0.95749505]
[1762124949463,0.00070245,110390.0,110380.0,0.56733224]
[1762124949670,0.00070245,110390.0,110380.0,0.57233224]
[1762124950307,0.00070245,110390.0,110380.0,0.56633224]
[1762124950518,0.00070245,110390.0,110380.0,0.56133224]
[1762124950728,0.00070245,110390.0,110380.0,0.56333224]
[1762124953190,0.00070245,110390.0,110380.0,0.95749505]
[1762124954240,0.00070245,110390.0,110380.0,1.10549505]
[1762124955109,0.00070245,110390.0,110380.0,0.71133224]
[1762124955324,0.00070245,110390.0,110380.0,1.10549505]
[1762124957692,0.00070245,110390.0,110380.0,0.71133224]
[1762124957913,0.00070245,110390.0,110380.0,0.34720224]
[1762124957914,0.01630245,110390.0,110380.0,0.34720224]
[1762124958123,0.00070245,110390.0,110380.0,0.34720224]
[1762124958335,0.01630245,110390.0,110380.0,0.34720224]
[1762124958792,0.19747828,110390.0,110380.0,0.34720224]
[1762124958977,0.20975828,110390.0,110380.0,0.24040224]
[1762124959188,0.20975828,110390.0,110380.0,0.19920224]
[1762124959392,0.02858245,110390.0,110380.0,0.19920224]
[1762124959601,0.20975828,110390.0,110380.0,0.19920224]
[1762124959833,0.23255828,110390.0,110380.0,0.18319224]
[1762124960066,0.23255828,110390.0,110370.0,0.19137866]
[1762124960278,0.0156,110380.0,110370.0,0.54767866]
[1762124960494,0.02858245,110390.0,110380.0,0.19749224]
[1762124960705,0.01298245,110390.0,110380.0,0.19749224]
[1762124960914,0.02858245,110390.0,110380.0,0.19749224]
[1762124961157,0.03458245,110390.0,110380.0,0.19749224]
[1762124961802,0.00670245,110390.0,110380.0,0.68265977]
[1762124962034,0.0002,110420.0,110410.0,0.52114301]
[1762124962257,0.00034467,110420.0,110410.0,0.94370582]
[1762124962505,0.00034467,110420.0,110410.0,0.96805582]
[1762124962750,0.00336847,110420.0,110410.0,0.96805582]
[1762124963190,0.00336847,110420.0,110410.0,0.97105582]
[1762124964320,0.00336847,110420.0,110410.0,0.97705582]
[1762124966167,0.01888847,110420.0,110410.0,0.55854301]
[1762124966673,0.00336847,110420.0,110410.0,0.55854301]
[1762124966894,0.00336847,110420.0,110410.0,0.58297301]
[1762124967119,0.01888847,110420.0,110410.0,0.55254301]
[1762124967345,0.01888847,110420.0,110410.0,0.54587301]
[1762124967618,0.00336847,110420.0,110410.0,0.57030301]
[1762124967848,0.00336847,110420.0,110410.0,0.96446582]
[1762124968505,0.00336847,110420.0,110410.0,0.96146582]
[1762124968736,0.01888847,110420.0,110410.0,0.54287301]
[1762124968971,0.01888847,110420.0,110410.0,0.54282301]
[1762124969217,0.01888847,110420.0,110410.0,0.54582301]
[1762124969458,0.00336847,110420.0,110410.0,0.55187301]
[1762124969686,0.00336847,110420.0,110410.0,0.96746582]
[1762124970178,0.00336847,110420.0,110410.0,0.96146582]
[1762124971315,0.00336847,110420.0,110410.0,0.96746582]
[1762124972277,0.00336847,110420.0,110410.0,0.97046582]
[1762124973223,0.00336847,110420.0,110410.0,0.61248529]
[1762124973430,0.00336847,110420.0,110410.0,1.0066481]
[1762124974360,0.00336847,110420.0,110410.0,0.97046582]
[1762124975978,0.00336847,110420.0,110410.0,0.94603582]
[1762124976216,0.01888847,110420.0,110410.0,0.94603582]
[1762124976446,0.00336847,110420.0,110410.0,0.97046582]
[1762124977126,0.01888847,110420.0,110410.0,0.94603582]
[1762124977346,0.00336847,110420.0,110410.0,0.94603582]
[1762124977565,0.00336847,110420.0,110410.0,1.11846582]
[1762124981975,0.01888847,110420.0,110410.0,1.09403582]
[1762124982214,0.04256847,110420.0,110410.0,1.07835582]
[1762124982442,0.04256847,110420.0,110410.0,1.07230582]
[1762124982908,0.04256847,110420.0,110410.0,0.67814301]
[1762124983615,0.01888847,110420.0,110410.0,1.09403582]
[1762124983827,0.00336847,110420.0,110410.0,1.09403582]
[1762124984041,0.01888847,110420.0,110410.0,0.69987301]
[1762124984274,0.01888847,110420.0,110410.0,1.07835582]
[1762124984781,0.04256847,110420.0,110410.0,1.07835582]
[1762124985232,0.04256847,110420.0,110410.0,0.68419301]
[1762124985455,0.01888847,110420.0,110410.0,0.69950301]
[1762124985668,0.01888847,110420.0,110410.0,1.09366582]
[1762124985905,0.01888847,110420.0,110410.0,0.69950301]
[1762124986135,0.01888847,110420.0,110410.0,1.09366582]
[1762124986351,0.01888847,110420.0,110410.0,0.69950301]
[1762124986569,0.01888847,110420.0,110410.0,1.09366582]
[1762124987249,0.01888847,110420.0,110410.0,0.67814301]
[1762124987250,0.04147847,110420.0,110410.0,0.67814301]
[1762124987721,0.22260507,110420.0,110410.0,0.33814301]
[1762124987948,0.22260507,110420.0,110410.0,0.006]
[1762124988184,0.18114301,110410.0,110400.0,0.1811454]
[1762124988439,0.05059,110410.0,110400.0,0.5211454]
[1762124988666,0.23173301,110410.0,110400.0,0.5211454]
[1762124988889,0.23453683,110410.0,110400.0,0.18115942]
[1762124989140,0.05339382,110410.0,110400.0,0.18115942]
[1762124992332,0.23453683,110410.0,110400.0,0.18115942]
[1762124992582,0.05339382,110410.0,110400.0,0.18115942]
[1762124995501,0.03080382,110410.0,110400.0,0.60874817]
[1762124995721,0.00280382,110410.0,110400.0,0.61326223]
[1762124995940,0.01848382,110410.0,110400.0,0.59063223]
[1762124996192,0.01848382,110410.0,110400.0,0.19646942]
[1762124996405,0.05339382,110410.0,110400.0,0.61074817]
[1762124996614,0.05339382,110410.0,110400.0,0.59263223]
[1762124996823,0.05339382,110410.0,110400.0,0.59063223]
[1762124997038,0.05339382,110410.0,110400.0,0.57832223]
[1762124997268,0.05339382,110410.0,110400.0,0.59363223]
[1762124997475,0.03080382,110410.0,110400.0,0.59363223]
[1762124998114,0.05339382,110410.0,110400.0,0.58132223]
[1762124998587,0.05339382,110410.0,110400.0,0.18415942]
[1762124998792,0.05339382,110410.0,110400.0,0.19015942]
[1762124999235,0.00280382,110410.0,110400.0,0.59963223]
[1762124999665,0.00280382,110410.0,110400.0,0.93963223]
[1762124999901,0.01848382,110410.0,110400.0,0.93663223]
[1762125000108,0.01848382,110410.0,110400.0,0.93863223]
[1762125000316,0.03080382,110410.0,110400.0,0.93663223]
[1762125000730,0.03080382,110410.0,110400.0,0.93363223]
[1762125001156,0.03080382,110410.0,110400.0,0.93663223]